[Event "1st Gujarat GM Open 2018"]
[Site "Ahmedabad"]
[Date "2018.10.06"]
[Round "2"]
[White "Ziatdinov, Raset"]
[Black "Aditya Varun Gampa"]
[Result "1-0"]
[ECO "B47"]
[WhiteElo "2265"]
[BlackElo "1898"]
[Annotator "NA"]
[PlyCount "49"]
[EventDate "2018.10.05"]
[EventType "swiss"]
[EventCountry "IND"]
[SourceTitle "playchess.com"]
[Source "ChessBase"]
[SourceQuality "1"]
[TimeControl "5400+30"]

1. e4 {[%emt 0:03:24]} c5 {[%emt 0:00:00]} 2. Nf3 {[%emt 0:00:05]} Nc6 {[%emt 0:00:05]} 3. d4 {[%emt 0:00:12]} cxd4 {[%emt 0:00:29]} 4. Nxd4 {[%emt 0:00:03]} Qc7 {[%emt 0:00:37]} 5. Nc3 {[%emt 0:00:41]} e6 {[%emt 0:00:26]} 6. f4 {[%emt 0:03:39]} a6 {[%emt 0:01:22]} 7. Nf3 {[%emt 0:00:45]} d6 {[%emt 0:00:46]} 8. Bd3 {[%emt 0:00:11]} Nf6 {[%emt 0:00:10]} 9. O-O {[%emt 0:00:12]} b5 {[%emt 0:00:53]} 10. Kh1 {[%emt 0:01:07]} Bb7 {[%emt 0:01:51]} 11. f5 {[%emt 0:07:00]} Be7 {[%emt 0:01:55]} 12. Ng5 {[%emt 0:01:44]} e5 {[%emt 0:03:36]} 13. a4 {[%emt 0:03:59]} b4 {[%emt 0:08:44]} 14. Nd5 {[%emt 0:10:55]} Qd8 {[%emt 0:03:00]} 15. Bc4 {[%emt 0:02:16]} O-O {[%emt 0:06:43]} 16. Nxf6+ {[%emt 0:01:09]} Bxf6 {[%emt 0:01:00]} 17. Qh5 {[%emt 0:03:25]} Bxg5 {[%emt 0:02:24]} 18. Bxg5 {[%emt 0:00:08]} Qc7 {[%emt 0:00:58]} 19. Bf6 {[%emt 0:05:45]} gxf6 {[%emt 0:02:35]} 20. Rf3 {[%emt 0:01:00]} Rfc8 {[%emt 0:00:41]} 21. Qh6 {[%emt 0:00:59]} Ne7 {[%emt 0:02:02]} 22. Rg3+ {[%emt 0:00:21]} Ng6 {[%emt 0:00:13]} 23. fxg6 {[%emt 0:00:10]} Qxc4 {[%emt 0:01:27]} 24. gxh7+ {[%emt 0:00:13]} Kh8 {[%emt 0:00:07]} 25. Qg7# {[%emt 0:00:10]} 1-0

[Event "1st Gujarat GM Open 2018"]
[Site "Ahmedabad"]
[Date "2018.10.06"]
[Round "2"]
[White "Ritviz, Parab"]
[Black "Umang, Kaisary"]
[Result "1-0"]
[ECO "B50"]
[WhiteElo "2252"]
[BlackElo "1869"]
[Annotator "NA"]
[PlyCount "137"]
[EventDate "2018.10.05"]
[EventType "swiss"]
[EventCountry "IND"]
[SourceTitle "playchess.com"]
[Source "ChessBase"]
[SourceQuality "1"]
[TimeControl "5400+30"]

1. e4 c5 2. Nf3 d6 3. c3 Nf6 4. Bd3 Nc6 5. O-O Bg4 6. h3 Bxf3 7. Qxf3 d5 8. exd5 Qxd5 9. Qxd5 Nxd5 10. Be4 O-O-O 11. Na3 g6 12. Nc4 Bg7 13. Re1 f5 14. Bf3 e5 15. d3 h6 16. a4 Rhe8 17. a5 Kc7 18. g3 Nde7 19. Be3 Rxd3 20. Be2 Rd5 21. Na3 b6 22. Bc4 Rdd8 23. b4 cxb4 24. cxb4 Nd5 25. Bxd5 Rxd5 26. Rac1 Kd7 27. axb6 axb6 28. Nc4 Nxb4 29. Nxb6+ Ke6 30. Nxd5 Nxd5 31. Rc6+ Kf7 32. Bc5 Nf6 33. Rb1 Rd8 34. Rb7+ Kg8 35. Be7 Rd7 36. Rxd7 Nxd7 37. Rd6 Nf8 38. Bxf8 Bxf8 39. Rxg6+ Kf7 40. Ra6 Bg7 41. Kg2 e4 42. g4 f4 43. Ra4 f3+ 44. Kf1 Kg6 45. Rxe4 Kg5 46. Re7 Bd4 47. Rf7 Bf6 48. Rf8 Kg6 49. Rb8 Bd4 50. Rb3 Kg5 51. Rxf3 Kh4 52. Kg2 Kg5 53. Rf5+ Kg6 54. f4 Bb2 55. Ra5 Bc3 56. Ra6+ Kg7 57. h4 Bd4 58. g5 h5 59. f5 Kh7 60. Rd6 Be5 61. Rd7+ Kg8 62. Kf3 Bc3 63. Ke4 Be1 64. f6 Bxh4 65. Kf5 Kf8 66. g6 Ke8 67. Re7+ Kd8 68. g7 Bxf6 69. Kxf6 1-0

[Event "1st Gujarat GM Open 2018"]
[Site "Ahmedabad"]
[Date "2018.10.06"]
[Round "2"]
[White "Srija, Seshadri"]
[Black "Shah Jeet"]
[Result "1-0"]
[ECO "C84"]
[WhiteElo "2246"]
[BlackElo "1828"]
[Annotator "NA"]
[PlyCount "115"]
[EventDate "2018.10.05"]
[EventType "swiss"]
[EventCountry "IND"]
[SourceTitle "playchess.com"]
[Source "ChessBase"]
[SourceQuality "1"]
[TimeControl "5400+30"]

1. e4 {[%emt 0:00:00]} e5 {[%emt 0:00:04]} 2. Nf3 {[%emt 0:00:00]} Nc6 {[%emt 0:00:17]} 3. Bb5 {[%emt 0:00:00]} a6 {[%emt 0:00:32]} 4. Ba4 {[%emt 0:00:03]} Nf6 {[%emt 0:00:10]} 5. O-O {[%emt 0:00:10]} Be7 {[%emt 0:00:07]} 6. d3 {[%emt 0:00:15]} d6 {[%emt 0:01:46]} 7. a3 {[%emt 0:00:48]} O-O {[%emt 0:02:18]} 8. Nc3 {[%emt 0:01:17]} Re8 {[%emt 0:02:42]} 9. h3 {[%emt 0:08:03]} h6 {[%emt 0:03:52]} 10. Ne2 {[%emt 0:01:50]} Bf8 {[%emt 0:02:22]} 11. c4 {[%emt 0:03:03]} Rb8 {[%emt 0:07:28]} 12. Be3 {[%emt 0:05:13]} b5 {[%emt 0:00:53]} 13. cxb5 {[%emt 0:04:08]} axb5 {[%emt 0:00:09]} 14. Bc2 {[%emt 0:01:40]} d5 {[%emt 0:00:38]} 15. Ng3 {[%emt 0:02:35]} Na5 {[%emt 0:05:44]} 16. b4 {[%emt 0:03:53]} dxe4 {[%emt 0:00:47]} 17. dxe4 {[%emt 0:12:25]} Nc4 {[%emt 0:00:17]} 18. Qe2 {[%emt 0:01:38]} Ra8 {[%emt 0:03:25]} 19. Rfd1 {[%emt 0:01:24]} Bd6 {[%emt 0:04:57]} 20. Bb3 {[%emt 0:13:44]} Rxa3 {[%emt 0:04:08]} 21. Bxc4 {[%emt 0:02:21]} Rxa1 {[%emt 0:00:31]} 22. Bxf7+ {[%emt 0:01:34]} Kxf7 {[%emt 0:00:01]} 23. Rxa1 {[%emt 0:00:08]} Bd7 {[%emt 0:02:12]} 24. Qb2 {[%emt 0:08:47]} Qe7 {[%emt 0:02:48]} 25. Ra7 {[%emt 0:01:20]} Kg8 {[%emt 0:06:12]} 26. Nh4 {[%emt 0:01:06]} Qf7 {[%emt 0:07:54]} 27. Bc5 {[%emt 0:03:18]} Qc4 {[%emt 0:07:15]} 28. Bxd6 {[%emt 0:02:10]} cxd6 {[%emt 0:00:02]} 29. Nhf5 {[%emt 0:02:03]} Bxf5 {[%emt 0:06:29]} 30. Nxf5 {[%emt 0:00:14]} Qxe4 {[%emt 0:02:19]} 31. Nxd6 {[%emt 0:01:10]} Qe1+ {[%emt 0:00:08]} 32. Kh2 {[%emt 0:00:00]} Rf8 {[%emt 0:02:57]} 33. Ra1 {[%emt 0:02:27]} Ng4+ {[%emt 0:02:22]} 34. hxg4 {[%emt 0:00:14]} Qxf2 {[%emt 0:00:23]} 35. Qxf2 {[%emt 0:02:01]} Rxf2 {[%emt 0:00:01]} 36. Ra7 {[%emt 0:03:52]} Rf4 {[%emt 0:00:28]} 37. Kg3 {[%emt 0:00:16]} Rxb4 {[%emt 0:00:08]} 38. Nf5 {[%emt 0:00:09]} Rf4 {[%emt 0:05:08]} 39. Rxg7+ {[%emt 0:00:26]} Kf8 {[%emt 0:00:15]} 40. Rb7 {[%emt 0:00:12]} h5 {[%emt 0:01:08]} 41. Ne3 {[%emt 0:01:20]} Re4 {[%emt 0:00:44]} 42. Kf3 {[%emt 0:00:29]} Rf4+ {[%emt 0:00:11]} 43. Ke2 {[%emt 0:00:16]} hxg4 {[%emt 0:00:40]} 44. Rxb5 {[%emt 0:00:10]} Re4 {[%emt 0:00:14]} 45. Rb7 {[%emt 0:00:50]} Ra4 {[%emt 0:00:44]} 46. Rb5 {[%emt 0:03:23]} Re4 {[%emt 0:00:07]} 47. Kf2 {[%emt 0:02:12]} Kf7 {[%emt 0:01:48]} 48. Rb6 {[%emt 0:00:36]} Ra4 {[%emt 0:00:40]} 49. Nf1 {[%emt 0:01:09]} Rf4+ {[%emt 0:01:54]} 50. Kg1 {[%emt 0:00:12]} Ra4 {[%emt 0:04:57]} 51. Kh2 {[%emt 0:00:35]} Ra1 {[%emt 0:00:48]} 52. Ng3 {[%emt 0:01:48]} Ra4 {[%emt 0:00:46]} 53. Nf5 {[%emt 0:00:17]} Rf4 {[%emt 0:00:45]} 54. Nh6+ {[%emt 0:00:21]} Kg7 {[%emt 0:01:56]} 55. Kg3 {[%emt 0:00:05]} Rf1 {[%emt 0:00:29]} 56. Nxg4 {[%emt 0:00:24]} e4 {[%emt 0:00:04]} 57. Re6 {[%emt 0:00:12]} Re1 {[%emt 0:00:07]} 58. Kf2 {[%emt 0:00:05]} 1-0

[Event "1st Gujarat GM Open 2018"]
[Site "Ahmedabad"]
[Date "2018.10.06"]
[Round "2"]
[White "Nayak Rajesh"]
[Black "Raghunandan, Kaumandur Srihari"]
[Result "1/2-1/2"]
[ECO "A13"]
[WhiteElo "2084"]
[BlackElo "2394"]
[Annotator "NA RC"]
[PlyCount "97"]
[EventDate "2018.10.05"]
[EventType "swiss"]
[EventCountry "IND"]
[SourceTitle "playchess.com"]
[Source "ChessBase"]
[SourceQuality "1"]
[TimeControl "5400+30"]

1. c4 {[%emt 0:00:00]} e6 {[%emt 0:00:25]} 2. g3 {[%emt 0:00:00]} d5 {[%emt 0:00:12]} 3. Bg2 {[%emt 0:00:00]} c6 {[%emt 0:00:31]} 4. Qc2 {[%emt 0:01:00]} Nf6 {[%emt 0:00:50]} 5. Nf3 {[%emt 0:00:07]} Nbd7 {[%emt 0:00:53]} 6. O-O {[%emt 0:06:31]} Bd6 {[%emt 0:01:59]} 7. d4 {[%emt 0:01:00]} O-O {[%emt 0:02:04]} 8. Nc3 {[%emt 0:02:59]} b6 {[%emt 0:03:16]} 9. e4 {[%emt 0:00:57]} dxe4 {[%emt 0:03:09]} 10. Ng5 {[%emt 0:01:42]} Bb7 {[%emt 0:04:00]} 11. Ngxe4 {[%emt 0:01:20]} Be7 {[%emt 0:06:42]} 12. Bf4 {[%emt 0:03:15]} Nxe4 {[%emt 0:01:50]} 13. Nxe4 {[%emt 0:00:29]} Nf6 {[%emt 0:01:12]} 14. Rad1 {[%emt 0:01:00]} h6 {[%emt 0:08:56]} 15. c5 {[%emt 0:04:55]} Nxe4 {[%emt 0:00:51]} 16. Bxe4 {[%emt 0:00:03]} Qd7 {[%emt 0:06:13]} 17. Qb3 {[%emt 0:04:24]} Bd8 {[%emt 0:05:58]} 18. Bc2 {[%emt 0:04:46]} Ba6 {[%emt 0:04:06]} 19. Rfe1 {[%emt 0:00:01]} Bc7 {[%emt 0:02:01]} 20. Be5 {[%emt 0:00:21]} Rfd8 {[%emt 0:09:06]} 21. Qf3 {[%emt 0:04:17]} Bc4 {[%emt 0:05:57]} 22. Qe4 {[%emt 0:01:59]} f5 {[%emt 0:01:15]} 23. Qe3 {[%emt 0:00:25]} Bd5 {[%emt 0:01:58]} 24. Bb3 {[%emt 0:06:18]} Bxe5 {[%emt 0:05:58]} 25. Bxd5 {[%emt 0:01:01]} Qxd5 {[%emt 0:02:52]} 26. Qxe5 {[%emt 0:04:01]} Qxa2 {[%emt 0:07:46]} 27. cxb6 {[%emt 0:08:13]} axb6 {[%emt 0:00:22]} 28. Qxe6+ {[%emt 0:00:49]} Qxe6 {[%emt 0:00:07]} 29. Rxe6 {[%emt 0:00:02]} Rac8 {[%emt 0:05:37]} 30. Re7 {[%emt 0:12:40]} Kf8 {[%emt 0:03:51]} 31. Re5 {[%emt 0:03:16]} Rd5 {[%emt 0:01:03]} 32. Rd3 {[%emt 0:00:10]} Re8 {[%emt 0:03:33]} 33. Rde3 {[%emt 0:04:36]} Rexe5 {[%emt 0:00:21]} 34. dxe5 {[%emt 0:00:04]} Ke7 {[%emt 0:00:28]} 35. Re2 {[%emt 0:02:21]} g5 {[%emt 0:01:15]} 36. f4 {[%emt 0:00:25]} Ke6 {[%emt 0:00:38]} 37. Kg2 {[%emt 0:01:44]} Rd4 {[%emt 0:00:15]} 38. Kf3 {[%emt 0:01:25]} Rd3+ {[%emt 0:00:19]} 39. Re3 {[%emt 0:00:34]} g4+ {[%emt 0:00:33]} 40. Ke2 {[%emt 0:00:04]} Rxe3+ {[%emt 0:00:24]} 41. Kxe3 {[%emt 0:00:01]} Kd7 {[%emt 0:00:35]} 42. b4 {[%emt 0:00:28]} Ke6 {[%emt 0:00:34]} 43. Kd4 {[%emt 0:01:22]} Kd7 {[%emt 0:00:51]} 44. Kd3 {[%emt 0:01:21]} Ke7 {[%emt 0:00:12]} 45. Kc4 {[%emt 0:00:04]} Ke6 {[%emt 0:00:24]} 46. Kd4 {[%emt 0:00:28]} Kd7 {[%emt 0:00:18]} 47. b5 {[%emt 0:00:04]} c5+ {[%emt 0:00:04]} 48. Kd5 {[%emt 0:00:22]} Ke7 {[%emt 0:00:06]} 49. Kc4 {[%emt 0:01:20]} 1/2-1/2

[Event "1st Gujarat GM Open 2018"]
[Site "Ahmedabad"]
[Date "2018.10.06"]
[Round "2"]
[White "Thipsay, Bagyashree Sathe"]
[Black "Patil, Pratik"]
[Result "1/2-1/2"]
[ECO "C19"]
[WhiteElo "2021"]
[BlackElo "2280"]
[Annotator "RC"]
[PlyCount "145"]
[EventDate "2018.10.05"]
[EventType "swiss"]
[EventCountry "IND"]
[SourceTitle "playchess.com"]
[Source "ChessBase"]
[SourceQuality "1"]
[TimeControl "5400+30"]

1. e4 {[%emt 0:00:00]} e6 {[%emt 0:00:23]} 2. d4 {[%emt 0:00:00]} d5 {[%emt 0:00:24]} 3. Nc3 {[%emt 0:00:00]} Bb4 {[%emt 0:02:15]} 4. e5 {[%emt 0:00:02]} Ne7 {[%emt 0:00:07]} 5. a3 {[%emt 0:00:44]} Bxc3+ {[%emt 0:00:05]} 6. bxc3 {[%emt 0:00:05]} c5 {[%emt 0:00:04]} 7. Nf3 {[%emt 0:02:23]} Nbc6 {[%emt 0:00:30]} 8. Bd3 {[%emt 0:04:15]} Qa5 {[%emt 0:00:12]} 9. Bd2 {[%emt 0:00:52]} c4 {[%emt 0:00:46]} 10. Be2 {[%emt 0:00:11]} Bd7 {[%emt 0:00:07]} 11. O-O {[%emt 0:02:33]} Qa4 {[%emt 0:00:20]} 12. Ne1 {[%emt 0:04:53]} O-O-O {[%emt 0:01:08]} 13. g3 {[%emt 0:02:57]} Rdf8 {[%emt 0:02:51]} 14. Ng2 {[%emt 0:01:17]} f5 {[%emt 0:08:51]} 15. exf6 {[%emt 0:00:40]} gxf6 {[%emt 0:00:37]} 16. Bg4 {[%emt 0:05:39]} Nd8 {[%emt 0:10:27]} 17. Re1 {[%emt 0:08:44]} Re8 {[%emt 0:05:14]} 18. Nf4 {[%emt 0:08:19]} Ng6 {[%emt 0:06:19]} 19. Nh5 {[%emt 0:01:16]} Rhf8 {[%emt 0:00:19]} 20. Bh6 {[%emt 0:08:57]} Rf7 {[%emt 0:00:39]} 21. Bg7 {[%emt 0:09:40]} f5 {[%emt 0:02:01]} 22. Bh3 {[%emt 0:00:02]} Rg8 {[%emt 0:07:12]} 23. Bh6 {[%emt 0:07:56]} Nc6 {[%emt 0:01:39]} 24. Bf4 {[%emt 0:03:54]} Nxf4 {[%emt 0:00:30]} 25. Nxf4 {[%emt 0:00:02]} Nd8 {[%emt 0:00:39]} 26. Bg2 {[%emt 0:02:56]} Re8 {[%emt 0:03:39]} 27. Qb1 {[%emt 0:03:21]} Bc6 {[%emt 0:04:19]} 28. Re2 {[%emt 0:01:30]} Rc7 {[%emt 0:04:03]} 29. Qb2 {[%emt 0:03:45]} Bd7 {[%emt 0:02:10]} 30. Rae1 {[%emt 0:00:38]} Rf8 {[%emt 0:00:20]} 31. Qb4 {[%emt 0:02:55]} Qxb4 {[%emt 0:01:58]} 32. cxb4 {[%emt 0:00:16]} b5 {[%emt 0:01:46]} 33. c3 {[%emt 0:01:04]} Rc6 {[%emt 0:00:24]} 34. Bf3 {[%emt 0:00:53]} Ra6 {[%emt 0:00:43]} 35. Ra2 {[%emt 0:00:19]} Kc7 {[%emt 0:01:16]} 36. Bd1 {[%emt 0:00:16]} Kd6 {[%emt 0:01:03]} 37. a4 {[%emt 0:04:44]} Nf7 {[%emt 0:03:41]} 38. h4 {[%emt 0:06:23]} bxa4 {[%emt 0:02:11]} 39. Bc2 {[%emt 0:01:13]} Rb8 {[%emt 0:00:26]} 40. Rea1 {[%emt 0:00:20]} Rbb6 {[%emt 0:00:15]} 41. Bxa4 {[%emt 0:01:19]} Bxa4 {[%emt 0:00:11]} 42. Rxa4 {[%emt 0:00:02]} Rxa4 {[%emt 0:00:00]} 43. Rxa4 {[%emt 0:00:01]} a6 {[%emt 0:00:11]} 44. f3 {[%emt 0:00:00]} Ke7 {[%emt 0:00:00]} 45. Kf2 {[%emt 0:00:00]} Nd6 {[%emt 0:00:00]} 46. Ke3 {[%emt 0:00:00]} Nb5 {[%emt 0:00:00]} 47. Ne2 {[%emt 0:00:00]} Kf6 {[%emt 0:00:00]} 48. Kf4 {[%emt 0:00:00]} Nd6 {[%emt 0:00:00]} 49. Ra5 {[%emt 0:00:00]} Nb7 {[%emt 0:00:00]} 50. Ra1 {[%emt 0:00:00]} Nd6 {[%emt 0:00:00]} 51. g4 {[%emt 0:00:00]} h6 {[%emt 0:00:00]} 52. Rg1 {[%emt 0:00:00]} fxg4 {[%emt 0:00:00]} 53. fxg4 {[%emt 0:00:00]} Ne4 {[%emt 0:00:00]} 54. g5+ {[%emt 0:00:00]} hxg5+ {[%emt 0:00:00]} 55. hxg5+ {[%emt 0:00:00]} Kg7 {[%emt 0:00:00]} 56. Ke5 {[%emt 0:00:00]} Nd2 {[%emt 0:00:00]} 57. Rg3 {[%emt 0:00:43]} Ne4 {[%emt 0:00:00]} 58. Rg2 {[%emt 0:00:28]} Nd2 {[%emt 0:00:00]} 59. Ng3 {[%emt 0:01:01]} Nf3+ {[%emt 0:00:00]} 60. Kf4 {[%emt 0:00:14]} Ne1 {[%emt 0:00:00]} 61. Rh2 {[%emt 0:01:12]} Nd3+ {[%emt 0:00:00]} 62. Kg4 {[%emt 0:00:03]} e5 {[%emt 0:00:00]} 63. dxe5 {[%emt 0:00:42]} Nxe5+ {[%emt 0:00:00]} 64. Kf5 {[%emt 0:00:17]} Nf3 {[%emt 0:00:00]} 65. Nh5+ {[%emt 0:00:28]} Kf7 {[%emt 0:00:00]} 66. Rh3 {[%emt 0:02:39]} Nxg5 {[%emt 0:00:00]} 67. Kxg5 {[%emt 0:00:16]} d4 {[%emt 0:00:00]} 68. Rf3+ {[%emt 0:00:20]} Ke7 {[%emt 0:00:00]} 69. cxd4 {[%emt 0:03:03]} Rxb4 {[%emt 0:00:00]} 70. Kf4 {[%emt 0:01:13]} Kd6 {[%emt 0:00:00]} 71. Ke4 {[%emt 0:01:01]} Rb3 {[%emt 0:00:00]} 72. Rf6+ {[%emt 0:00:29]} Kc7 {[%emt 0:00:00]} 73. Rxa6 1/2-1/2

[Event "1st Gujarat GM Open 2018"]
[Site "Ahmedabad"]
[Date "2018.10.06"]
[Round "2"]
[White "Suvradeepta, Das"]
[Black "Deshmukh, Anup"]
[Result "0-1"]
[ECO "A18"]
[WhiteElo "2005"]
[BlackElo "2267"]
[Annotator "NA"]
[PlyCount "54"]
[EventDate "2018.10.05"]
[EventType "swiss"]
[EventCountry "IND"]
[SourceTitle "playchess.com"]
[Source "ChessBase"]
[SourceQuality "1"]
[TimeControl "5400+30"]

1. c4 {[%emt 0:00:00]} Nf6 {[%emt 0:00:00]} 2. Nc3 {[%emt 0:00:00]} e6 {[%emt 0:01:01]} 3. e4 {[%emt 0:00:00]} e5 {[%emt 0:00:52]} 4. Nf3 {[%emt 0:00:45]} Nc6 {[%emt 0:00:26]} 5. Be2 {[%emt 0:01:54]} d6 {[%emt 0:02:33]} 6. O-O {[%emt 0:00:22]} Nd4 {[%emt 0:00:50]} 7. Nxd4 {[%emt 0:08:22]} exd4 {[%emt 0:00:11]} 8. Nd5 {[%emt 0:01:30]} Nxe4 {[%emt 0:09:16]} 9. Re1 {[%emt 0:05:29]} c6 {[%emt 0:17:49]} 10. Bf3 {[%emt 0:08:43]} cxd5 {[%emt 0:00:30]} 11. cxd5 {[%emt 0:00:10]} Be7 {[%emt 0:01:12]} 12. Bxe4 {[%emt 0:06:54]} O-O {[%emt 0:00:41]} 13. d3 {[%emt 0:00:44]} f5 {[%emt 0:05:12]} 14. Bf3 {[%emt 0:00:06]} Bf6 {[%emt 0:01:19]} 15. Bd2 {[%emt 0:03:50]} Bd7 {[%emt 0:06:09]} 16. Qb3 {[%emt 0:22:23]} Be5 {[%emt 0:02:57]} 17. Rac1 {[%emt 0:02:53]} Rb8 {[%emt 0:06:34]} 18. Qa3 {[%emt 0:05:13]} a6 {[%emt 0:07:13]} 19. Bb4 {[%emt 0:10:47]} Qf6 {[%emt 0:03:48]} 20. Rc7 {[%emt 0:02:31]} Rf7 {[%emt 0:02:10]} 21. Ba5 {[%emt 0:06:22]} g5 {[%emt 0:03:47]} 22. Bb6 {[%emt 0:01:51]} g4 {[%emt 0:03:30]} 23. Bd1 {[%emt 0:01:06]} Re8 {[%emt 0:02:59]} 24. Rf1 {[%emt 0:03:16]} Bxh2+ {[%emt 0:03:20]} 25. Kxh2 {[%emt 0:00:13]} Qh4+ {[%emt 0:00:04]} 26. Kg1 {[%emt 0:00:07]} Rf6 {[%emt 0:00:15]} 27. Bxg4 {[%emt 0:07:00]} fxg4 {[%emt 0:00:25]} 0-1